bitfinex/quotes_BTCUSD_20250428
["timestamp","ask_amount","ask_price","bid_price","bid_amount"]
[1745831498856,0.0452,94855.0,94846.0,0.00088134]
[1745831499060,0.0458,94852.0,94846.0,0.00088134]
[1745831499269,0.0478,94850.0,94846.0,0.00088134]
[1745831499468,0.10952642,94849.0,94846.0,0.00088134]
[1745831499849,0.01967494,94848.0,94846.0,0.00088134]
[1745831500095,0.10952643,94847.0,94846.0,0.00088134]
[1745831500296,0.12920137,94847.0,94846.0,0.00088134]
[1745831501328,0.15148151,94847.0,94846.0,0.00088134]
[1745831501526,0.15348151,94847.0,94846.0,0.00088134]
[1745831502526,0.13120137,94847.0,94846.0,0.00088134]
[1745831502728,0.35454085,94844.0,94826.0,0.0004245]
[1745831502932,0.34,94832.0,94826.0,0.0004245]
[1745831503159,0.34,94826.0,94817.0,0.0004245]
[1745831503369,0.3872,94824.0,94817.0,0.0004245]
[1745831503528,0.00263718,94823.0,94817.0,0.0004245]
[1745831503759,0.00263718,94823.0,94817.0,0.00047024]
[1745831503956,0.10689014,94822.0,94817.0,0.00047024]
[1745831504157,0.34263718,94821.0,94817.0,0.00047024]
[1745831504384,0.10689014,94820.0,94817.0,0.00047024]
[1745831504556,0.0494,94818.0,94817.0,0.00047024]
[1745831504774,0.01054685,94815.0,94804.0,0.00801646]
[1745831504998,0.59993793,94818.0,94804.0,0.00801646]
[1745831504999,0.44689014,94812.0,94804.0,0.00801646]
[1745831505176,0.0494,94811.0,94800.0,4.0]
[1745831505379,0.49629014,94809.0,94800.0,4.0]
[1745831505580,0.60083099,94809.0,94800.0,4.0]
[1745831505958,0.70772113,94809.0,94800.0,4.0]
[1745831506406,0.73173717,94809.0,94800.0,4.0]
[1745831506623,0.52030618,94809.0,94800.0,4.0]
[1745831506820,0.61030618,94809.0,94800.0,4.0]
[1745831507257,0.61034618,94809.0,94800.0,4.0]
[1745831507958,0.61534618,94809.0,94800.0,4.0]
[1745831512190,0.59133014,94809.0,94800.0,4.0]
[1745831512404,0.16129014,94809.0,94800.0,4.0]
[1745831512621,0.11189014,94809.0,94800.0,4.0]
[1745831517679,0.11189014,94809.0,94800.0,3.81290064]
[1745831517882,0.00263728,94808.0,94800.0,3.81290064]
[1745831518039,0.10689014,94807.0,94800.0,3.81290064]
[1745831518239,0.00263728,94806.0,94800.0,3.81290064]
[1745831518500,0.10689014,94805.0,94800.0,3.81290064]
[1745831518636,0.00263728,94804.0,94800.0,3.81290064]
[1745831518865,0.10689014,94803.0,94800.0,3.81290064]
[1745831519074,0.00263728,94802.0,94800.0,3.81290064]
[1745831519273,0.10689014,94801.0,94800.0,3.81290064]
[1745831520682,0.51749014,94801.0,94800.0,3.81290064]
[1745831521898,0.51849014,94801.0,94800.0,3.81290064]
[1745831527915,0.53813903,94801.0,94800.0,3.74165596]
[1745831530310,0.51849014,94801.0,94800.0,3.74165596]
[1745831531138,0.95269014,94801.0,94800.0,3.74165596]
[1745831531693,0.98213465,94801.0,94800.0,3.74165596]
[1745831535776,0.98213465,94801.0,94800.0,3.54211388]
[1745831539057,1.1737255,94801.0,94800.0,3.54211388]
[1745831539254,1.1747255,94801.0,94800.0,3.54211388]
[1745831539491,0.9976755,94801.0,94800.0,3.54211388]
[1745831539820,0.9966755,94801.0,94800.0,3.54211388]
[1745831540025,1.0856755,94801.0,94800.0,3.54211388]
[1745831540398,1.0876755,94801.0,94800.0,3.54211388]
[1745831540601,0.9976755,94801.0,94800.0,3.54211388]
[1745831540807,1.0856755,94801.0,94800.0,3.54211388]
[1745831540981,1.0936755,94801.0,94800.0,3.54311388]
[1745831541208,1.08713465,94801.0,94800.0,3.54311388]
[1745831541384,1.10031407,94801.0,94800.0,3.54311388]
[1745831541685,1.10031407,94801.0,94800.0,3.54411388]
[1745831541686,1.08513465,94801.0,94800.0,3.54411388]
[1745831541824,1.09113465,94801.0,94800.0,3.54411388]
[1745831547979,1.09113465,94801.0,94800.0,3.47285648]
[1745831549996,0.56693465,94801.0,94800.0,3.47285648]
[1745831550414,0.90693465,94801.0,94800.0,3.47285648]
[1745831550617,0.96853812,94801.0,94800.0,3.47285648]
[1745831550821,0.96253812,94801.0,94800.0,3.47185648]
[1745831550999,0.94853812,94801.0,94800.0,3.47085648]
[1745831551209,0.96053812,94801.0,94800.0,3.47185648]
[1745831551401,0.95453812,94801.0,94800.0,3.47085648]
[1745831551608,0.94853812,94801.0,94800.0,3.47085648]
[1745831551801,0.95153812,94801.0,94800.0,3.47085648]
[1745831552009,1.00313812,94801.0,94800.0,3.47085648]
[1745831552215,1.06627897,94801.0,94800.0,3.47085648]
[1745831552756,1.0046755,94801.0,94800.0,3.47085648]
[1745831552966,0.97523099,94801.0,94800.0,3.06025648]
[1745831555450,1.86538599,94801.0,94800.0,3.06025648]
[1745831556425,1.86538599,94801.0,94800.0,3.06025648]
[1745831556646,1.52733699,94801.0,94800.0,3.06025648]
[1745831556796,1.40653699,94801.0,94800.0,3.06025648]
[1745831557005,1.51342713,94801.0,94800.0,3.06025648]
[1745831557205,1.77539536,94801.0,94800.0,2.99617561]
[1745831557414,1.80494859,94801.0,94800.0,2.99617561]
[1745831558044,1.79894859,94801.0,94800.0,2.99617561]
[1745831558240,1.80494859,94801.0,94800.0,2.99617561]
[1745831558393,1.81094859,94801.0,94800.0,2.99717561]
[1745831561149,1.59998036,94801.0,94800.0,2.99717561]
[1745831561778,1.46353699,94801.0,94800.0,2.58657561]
[1745831563707,1.4930834,94801.0,94800.0,2.58657561]
[1745831565106,1.0617774,94801.0,94800.0,2.58657561]
[1745831565311,3.2045264,94801.0,94800.0,2.58657561]
[1745831566821,2.9341564,94801.0,94800.0,2.58657561]
[1745831567028,2.7737564,94801.0,94800.0,2.58657561]
[1745831567223,2.66159554,94801.0,94800.0,2.58657561]
[1745831569272,2.54508254,94801.0,94800.0,2.58657561]
[1745831569476,2.0874874,94801.0,94800.0,2.58657561]
[1745831569699,2.05794099,94801.0,94800.0,2.58657561]
[1745831571523,2.08750011,94801.0,94800.0,2.58657561]
[1745831573916,2.10720571,94801.0,94800.0,2.58657561]
[1745831580716,2.19668571,94801.0,94800.0,2.58657561]
[1745831581148,2.25661798,94801.0,94800.0,2.58657561]
[1745831582125,1.23090798,94801.0,94800.0,2.58657561]
[1745831582687,2.52914098,94801.0,94800.0,2.58657561]
[1745831583103,2.50943538,94801.0,94800.0,2.58657561]
[1745831585871,2.50943538,94801.0,94800.0,2.38257806]
[1745831591128,2.52916525,94801.0,94800.0,2.38257806]
[1745831591870,2.74013348,94801.0,94800.0,2.38257806]
[1745831592279,2.52916525,94801.0,94800.0,2.38257806]
[1745831593061,2.74013348,94801.0,94800.0,2.38257806]
[1745831593262,2.52916525,94801.0,94800.0,2.38257806]
[1745831593644,2.74013348,94801.0,94800.0,2.38257806]
[1745831594305,2.52916525,94801.0,94800.0,2.38257806]
[1745831595252,2.52916525,94801.0,94800.0,2.18080206]
[1745831595370,2.43968525,94801.0,94800.0,2.18080206]
[1745831595564,2.52916525,94801.0,94800.0,2.18080206]
[1745831596447,2.74013348,94801.0,94800.0,2.18080206]
[1745831596812,2.52916525,94801.0,94800.0,2.18080206]
[1745831597998,2.74013348,94801.0,94800.0,2.18080206]
[1745831599259,2.52916525,94801.0,94800.0,2.18080206]
[1745831600073,2.74013348,94801.0,94800.0,2.18080206]
[1745831601834,2.47916525,94801.0,94800.0,2.18080206]
[1745831602040,2.52916525,94801.0,94800.0,2.18080206]
[1745831606661,2.30470325,94801.0,94800.0,2.18080206]
[1745831606861,2.22365298,94801.0,94800.0,2.18080206]
[1745831607190,1.17099998,94801.0,94800.0,2.18080206]
[1745831607362,2.56811998,94801.0,94800.0,2.18080206]
[1745831607559,1.17099998,94801.0,94800.0,2.18080206]
[1745831608011,2.58963398,94801.0,94800.0,2.18080206]
[1745831608163,2.69652412,94801.0,94800.0,2.18080206]
[1745831608912,2.64652412,94801.0,94800.0,2.18080206]
[1745831610120,2.48469512,94801.0,94800.0,2.18080206]
[1745831610314,2.28832498,94801.0,94800.0,2.18080206]
[1745831610514,1.43525398,94801.0,94800.0,2.18080206]
[1745831611481,1.27999898,94801.0,94800.0,2.18080206]
[1745831612478,1.26026911,94801.0,94800.0,2.18080206]
[1745831614583,1.05812826,94801.0,94800.0,2.18080206]
[1745831614804,0.55904926,94801.0,94800.0,2.18080206]
[1745831615011,0.89904926,94801.0,94800.0,2.18080206]
[1745831616772,0.99789419,94801.0,94800.0,2.18080206]
[1745831618055,0.89904926,94801.0,94800.0,2.18080206]
[1745831624819,0.91359011,94801.0,94800.0,2.18080206]
[1745831625250,1.00295011,94801.0,94800.0,2.18080206]
[1745831625451,1.52162011,94801.0,94800.0,2.18080206]
[1745831631192,1.73258834,94801.0,94800.0,2.18080206]
[1745831631398,1.83947848,94801.0,94800.0,2.18080206]
[1745831633306,1.62851025,94801.0,94800.0,2.18080206]
[1745831636915,1.62815025,94801.0,94800.0,2.18080206]
[1745831638140,1.52126011,94801.0,94800.0,2.18080206]
[1745831640371,1.73222834,94801.0,94800.0,2.18080206]
[1745831640568,1.52126011,94801.0,94800.0,2.18080206]
[1745831641606,1.73222834,94801.0,94800.0,2.18080206]
[1745831643238,1.52126011,94801.0,94800.0,2.18080206]
[1745831643442,1.42747311,94801.0,94800.0,2.18080206]
[1745831643721,1.53436325,94801.0,94800.0,2.18080206]
[1745831644526,1.42747311,94801.0,94800.0,2.18080206]
[1745831644944,1.83775611,94801.0,94800.0,2.18080206]
[1745831645529,2.04872434,94801.0,94800.0,2.18080206]
[1745831648975,1.83775611,94801.0,94800.0,2.18080206]
[1745831650291,2.14450611,94801.0,94800.0,2.18080206]
[1745831650494,2.16402825,94801.0,94800.0,2.18080206]
[1745831651902,2.07502825,94801.0,94800.0,2.18080206]
[1745831652101,2.16402825,94801.0,94800.0,2.18080206]
[1745831652507,1.11979411,94801.0,94800.0,2.18080206]
[1745831652706,1.11879411,94801.0,94800.0,2.18080206]
[1745831660683,1.00259011,94801.0,94800.0,2.18080206]
[1745831660880,1.71625011,94801.0,94800.0,2.18080206]
[1745831661083,1.68461211,94801.0,94800.0,2.18080206]
[1745831663621,1.68397211,94801.0,94800.0,2.18080206]
[1745831668938,1.79086225,94801.0,94800.0,2.18080206]
[1745831669855,1.68397211,94801.0,94800.0,2.18080206]
[1745831671537,1.21291834,94801.0,94800.0,2.18080206]
[1745831672081,2.17536811,94801.0,94800.0,2.18080206]
[1745831675255,2.08700811,94801.0,94800.0,2.18080206]
[1745831675478,2.17536811,94801.0,94800.0,2.18080206]
[1745831675681,2.2597567,94801.0,94800.0,2.18080206]
[1745831678938,2.17536811,94801.0,94800.0,2.18080206]
[1745831680066,2.38633634,94801.0,94800.0,2.18080206]
[1745831680519,2.17536811,94801.0,94800.0,2.18080206]
[1745831680755,2.38633634,94801.0,94800.0,2.18080206]
[1745831685228,2.38733634,94801.0,94800.0,2.18080206]
[1745831685494,2.49422648,94801.0,94800.0,2.18080206]
[1745831686243,2.28325825,94801.0,94800.0,2.18080206]
[1745831686449,2.38733634,94801.0,94800.0,2.18080206]
[1745831687068,2.17636811,94801.0,94800.0,2.18080206]
[1745831687270,1.70449411,94801.0,94800.0,2.18080206]
[1745831687478,1.68337611,94801.0,94800.0,2.18080206]
[1745831688074,1.68237611,94801.0,94800.0,2.18080206]
[1745831688401,1.68337611,94801.0,94800.0,2.18080206]
[1745831688897,2.01902711,94801.0,94800.0,2.18080206]
[1745831690566,1.93066711,94801.0,94800.0,2.18080206]
[1745831690772,2.01902711,94801.0,94800.0,2.18080206]
[1745831691315,2.01802711,94801.0,94800.0,2.18080206]
[1745831691515,1.84537411,94801.0,94800.0,2.18080206]
[1745831691771,1.82007411,94801.0,94800.0,2.18080206]
[1745831692645,1.65118811,94801.0,94800.0,2.18080206]
[1745831693114,1.00195011,94801.0,94800.0,2.18080206]
[1745831693312,1.63222611,94801.0,94800.0,2.18080206]
[1745831700033,1.63222611,94801.0,94800.0,1.98529316]
[1745831701928,1.54386611,94801.0,94800.0,1.98529316]
[1745831702150,1.00175011,94801.0,94800.0,1.98529316]
[1745831703218,1.10202512,94801.0,94800.0,1.98529316]
[1745831705945,2.26805511,94801.0,94800.0,1.98529316]
[1745831706146,4.90185411,94801.0,94800.0,1.98529316]
[1745831706397,4.96573911,94801.0,94800.0,1.98529316]
[1745831706597,4.96573911,94801.0,94800.0,1.75595665]
[1745831708647,4.94977911,94801.0,94800.0,1.75595665]
[1745831708877,4.50316125,94801.0,94800.0,1.75595665]
[1745831710712,4.43083625,94801.0,94800.0,1.75595665]
[1745831710929,4.30307725,94801.0,94800.0,1.75595665]
[1745831711135,3.85051925,94801.0,94800.0,1.75595665]
[1745831711338,3.58495411,94801.0,94800.0,1.75595665]
[1745831712188,3.31354011,94801.0,94800.0,1.75595665]
[1745831713030,2.25185611,94801.0,94800.0,1.75595665]
[1745831713236,1.94582411,94801.0,94800.0,1.75595665]
[1745831713648,1.94682411,94801.0,94800.0,1.75595665]
[1745831714238,1.30584211,94801.0,94800.0,1.75595665]
[1745831714411,1.30484211,94801.0,94800.0,1.75595665]
[1745831714618,1.27528299,94801.0,94800.0,1.75595665]
[1745831715002,1.27628299,94801.0,94800.0,1.75595665]
[1745831716664,1.00277496,94801.0,94800.0,1.75595665]
[1745831716869,1.30586696,94801.0,94800.0,1.75595665]
[1745831718131,1.30582696,94801.0,94800.0,1.75595665]
[1745831720752,1.21666696,94801.0,94800.0,1.80285665]
[1745831720952,1.00177496,94801.0,94800.0,1.80285665]
[1745831721151,0.91361496,94801.0,94800.0,1.80285665]
[1745831727474,0.89907411,94801.0,94800.0,1.75595665]
[1745831727680,0.86949014,94801.0,94800.0,1.75595665]
[1745831728834,0.86349014,94801.0,94800.0,1.75495665]
[1745831729014,0.86749014,94801.0,94800.0,1.75495665]
[1745831729412,0.86149014,94801.0,94800.0,1.75495665]
[1745831729955,0.86449014,94801.0,94800.0,1.75495665]
[1745831731843,0.86449014,94801.0,94800.0,1.76435732]
[1745831743568,0.86149014,94801.0,94800.0,1.76435732]
[1745831743774,0.86149014,94801.0,94800.0,1.75495665]
[1745831744073,0.85749014,94801.0,94800.0,1.76462425]
[1745831744211,0.86149014,94801.0,94800.0,1.76462425]
[1745831744415,0.85749014,94801.0,94800.0,1.76462425]
[1745831744862,0.86249014,94801.0,94800.0,1.76462425]
[1745831745459,0.85949014,94801.0,94800.0,1.76462425]
[1745831745663,0.86049014,94801.0,94800.0,1.76462425]
[1745831747712,0.52049014,94801.0,94800.0,1.76462425]
[1745831754602,0.10989014,94801.0,94800.0,1.76462425]
[1745831755013,0.10689014,94801.0,94800.0,1.76462425]
[1745831755434,0.10989014,94801.0,94800.0,1.76462425]
[1745831755855,0.4106,94835.0,94806.0,0.0163]
[1745831756085,0.0008496,94839.0,94800.0,1.93936945]
[1745831756086,0.10689014,94834.0,94825.0,0.1737452]
[1745831756260,0.10689014,94834.0,94820.0,0.1737452]
[1745831756261,0.0008496,94839.0,94827.0,0.21090926]
[1745831756462,0.10689014,94838.0,94829.0,0.1737452]
[1745831756598,0.10689014,94838.0,94830.0,0.00129941]
[1745831756793,0.0008496,94839.0,94830.0,0.00129941]
[1745831756997,0.0008496,94839.0,94831.0,0.00941421]
[1745831757197,0.0008496,94839.0,94832.0,0.00129879]
[1745831757522,0.0008496,94839.0,94833.0,0.00928814]
[1745831757683,0.0008496,94839.0,94834.0,0.00129882]
[1745831758029,0.00089535,94839.0,94835.0,0.00928288]
[1745831758235,0.00089535,94839.0,94836.0,0.00129881]
[1745831758716,0.00089535,94839.0,94837.0,0.00927762]
[1745831758918,0.00089535,94839.0,94838.0,0.00129881]
[1745831759266,0.00089535,94839.0,94838.0,0.0105738]
[1745831760849,0.00089535,94839.0,94838.0,0.01027499]
[1745831760850,0.10778549,94839.0,94838.0,0.01027499]
[1745831761236,0.10778549,94839.0,94838.0,0.001]
[1745831761620,0.10778549,94839.0,94838.0,0.002]
[1745831765073,0.00089535,94839.0,94838.0,0.002]
[1745831765481,0.00089535,94839.0,94838.0,0.01107233]
[1745831765729,0.00089535,94839.0,94838.0,0.002]
[1745831766267,0.00089535,94839.0,94838.0,0.01007233]
[1745831766445,0.00089535,94839.0,94838.0,0.03479878]
[1745831766575,0.00089535,94839.0,94838.0,0.03379878]
[1745831766777,0.00089535,94839.0,94838.0,0.04482634]
[1745831767180,0.00089535,94839.0,94838.0,0.04282634]
[1745831767787,0.00089535,94839.0,94838.0,0.04682634]
[1745831768227,0.00089535,94839.0,94838.0,0.04482634]
[1745831768639,0.00089535,94839.0,94838.0,0.04282634]
[1745831769027,0.00089535,94839.0,94838.0,0.04782634]
[1745831769994,0.00089535,94839.0,94838.0,0.05282634]
[1745831770855,0.00089535,94839.0,94838.0,0.07243325]
[1745831772941,0.00089535,94839.0,94838.0,0.28331918]
[1745831773097,0.00089535,94839.0,94838.0,0.2820204]
[1745831776724,0.00089535,94839.0,94838.0,0.38891054]
[1745831777074,0.00089535,94839.0,94838.0,0.38391054]
[1745831777502,0.00189535,94839.0,94838.0,0.38891054]
[1745831777704,0.00289535,94839.0,94838.0,0.40671155]
[1745831777860,0.00189535,94839.0,94838.0,0.38871155]
[1745831778261,0.00389535,94839.0,94838.0,0.40771155]
[1745831779637,0.00389535,94839.0,94838.0,0.39791054]
[1745831782836,0.00389535,94839.0,94838.0,0.39794349]
[1745831784185,0.00194027,94839.0,94838.0,0.39794349]
[1745831785983,0.00194027,94839.0,94838.0,0.29105335]
[1745831786130,0.00194027,94839.0,94838.0,0.34663335]
[1745831786332,0.00194027,94839.0,94838.0,0.25855335]
[1745831786534,0.00194027,94839.0,94838.0,0.34663335]
[1745831794319,0.00194027,94839.0,94838.0,0.25855335]
[1745831794529,0.00194027,94839.0,94838.0,0.34663335]
[1745831806129,0.00194027,94839.0,94838.0,0.25855335]
[1745831806327,0.00194027,94839.0,94838.0,0.34663335]
[1745831810063,0.00194027,94839.0,94838.0,0.13574742]
[1745831810276,0.00194027,94839.0,94838.0,0.13704543]
[1745831811123,0.00194027,94839.0,94838.0,0.34793136]
[1745831811324,0.00194027,94839.0,94838.0,0.34663335]
[1745831812854,0.00194027,94839.0,94838.0,0.04766742]
[1745831813148,0.00194027,94839.0,94838.0,0.13704556]
[1745831813426,0.00194027,94839.0,94838.0,0.34793149]
[1745831813579,0.00194027,94839.0,94838.0,0.34663335]
[1745831816946,0.00194027,94839.0,94838.0,0.34659335]
[1745831824389,0.00194027,94839.0,94838.0,0.25855335]
[1745831824713,0.00194027,94839.0,94838.0,0.34659335]
[1745831832851,0.00194027,94839.0,94838.0,0.24193506]
[1745831841147,0.00194027,94839.0,94838.0,0.00879381]
[1745831841356,0.04794027,94839.0,94838.0,0.01009196]
[1745831841564,0.04794027,94839.0,94838.0,0.00129815]
[1745831841932,0.04794027,94839.0,94833.0,0.01184331]
[1745831842067,0.04794027,94839.0,94838.0,0.00729372]
[1745831842271,0.047,94839.0,94838.0,0.00129845]
[1745831842567,0.046,94839.0,94838.0,0.01359217]
[1745831843475,0.0936,94839.0,94838.0,0.01359217]
[1745831843695,0.0936,94839.0,94838.0,0.00629845]
[1745831844496,0.0936,94839.0,94838.0,0.01029845]
[1745831844717,0.0936,94839.0,94838.0,0.00629845]
[1745831845918,0.0936,94839.0,94838.0,0.00129845]
[1745831846123,0.0478,94838.0,94833.0,0.0012989]
[1745831846488,0.0478,94838.0,94834.0,0.00731768]
[1745831846694,0.0478,94838.0,94835.0,0.00129898]
[1745831847095,0.0478,94838.0,94827.0,0.00129903]
[1745831847296,0.0478,94838.0,94833.0,0.001]
[1745831847500,0.0478,94838.0,94834.0,0.00129904]
[1745831848017,0.0478,94838.0,94835.0,0.001]
[1745831848219,0.0488,94838.0,94836.0,0.00129899]
[1745831848419,0.0478,94838.0,94836.0,0.00129899]
[1745831848798,0.16423014,94837.0,94835.0,0.001]
[1745831848966,0.0941,94836.0,94835.0,0.001]
[1745831849369,0.0982,94835.0,94832.0,0.00805279]
[1745831849574,0.0982,94833.0,94820.0,0.00129936]
[1745831849772,0.0982,94833.0,94820.0,0.00134511]
[1745831849975,0.0484,94832.0,94821.0,0.00747341]
[1745831850157,0.0498,94831.0,94829.0,0.05]
[1745831850497,0.0498,94831.0,94830.0,0.00744975]
[1745831851277,0.0498,94831.0,94830.0,0.00874931]
[1745831851479,0.0518,94831.0,94830.0,0.00874931]
[1745831851680,0.0518,94831.0,94830.0,0.00906989]
[1745831852118,0.0538,94831.0,94830.0,0.00906989]
[1745831852321,0.0498,94831.0,94830.0,0.00906989]
[1745831852523,0.0498,94831.0,94830.0,0.00777033]
[1745831852852,0.0508,94831.0,94821.0,0.01184556]
[1745831852987,0.0498,94831.0,94822.0,0.01054607]
[1745831853193,0.0498,94831.0,94823.0,0.00129939]
[1745831853400,0.0498,94831.0,94830.0,0.001]
[1745831853855,0.0498,94831.0,94823.0,0.00129939]
[1745831854255,0.0498,94831.0,94824.0,0.00879939]
[1745831854700,0.0498,94831.0,94824.0,0.016527]
[1745831856545,0.0498,94831.0,94824.0,0.017527]
[1745831862820,0.0498,94831.0,94818.0,0.08932623]
[1745831863110,0.0498,94831.0,94825.0,0.00627349]
[1745831863365,0.0498,94831.0,94818.0,0.00010623]
[1745831863595,0.0498,94831.0,94824.0,0.00784976]
[1745831863831,0.0498,94831.0,94819.0,0.00628927]
[1745831864073,0.0498,94831.0,94818.0,0.00010623]
[1745831864302,0.0498,94831.0,94820.0,0.00628664]
[1745831864476,0.0498,94831.0,94819.0,0.00628927]
[1745831864627,0.0498,94831.0,94821.0,0.00628401]
[1745831864830,0.0498,94831.0,94820.0,0.00628664]
[1745831865060,0.0498,94831.0,94822.0,0.00628138]
[1745831865217,0.0498,94831.0,94821.0,0.00628401]
[1745831865423,0.0498,94831.0,94823.0,0.00627875]
[1745831865672,0.0498,94831.0,94822.0,0.00628138]
[1745831865978,0.0498,94831.0,94823.0,0.00627875]
[1745831866534,0.0498,94831.0,94818.0,0.00010623]
[1745831866754,0.0498,94831.0,94819.0,0.00628927]
[1745831867335,0.0498,94831.0,94819.0,0.01439143]
[1745831867534,0.0498,94831.0,94819.0,0.00628927]
[1745831868135,0.0498,94831.0,94823.0,0.001]
[1745831868523,0.0498,94831.0,94818.0,0.00010623]
[1745831868704,0.0498,94831.0,94819.0,0.00628927]
[1745831868909,0.0498,94831.0,94819.0,0.00728927]
[1745831869107,0.26890097,94830.0,94819.0,0.01530927]
[1745831869320,0.28029111,94830.0,94819.0,0.00802]
[1745831869542,0.28029111,94830.0,94818.0,0.00110623]
[1745831869762,0.0954,94829.0,94819.0,0.00629949]
[1745831869967,0.0954,94827.0,94819.0,0.01407023]
[1745831870298,0.0941,94825.0,94819.0,0.00777074]
[1745831870418,0.10689014,94827.0,94818.0,0.00110623]
[1745831870419,0.0941,94824.0,94818.0,0.00110623]
[1745831870635,0.0489,94823.0,94819.0,0.00629949]
[1745831870864,0.0489,94823.0,94818.0,0.00010623]
[1745831871065,0.0489,94823.0,94819.0,0.00629949]
[1745831871271,0.0489,94823.0,94822.0,0.05]
[1745831871472,0.0489,94823.0,94822.0,0.0562916]
[1745831872741,0.0489,94823.0,94822.0,0.0572916]
[1745831883220,0.15579014,94823.0,94822.0,0.0572916]
[1745831883422,0.20139014,94823.0,94822.0,0.0572916]
[1745831883601,0.20139014,94823.0,94822.0,0.0072916]
[1745831884021,0.20139014,94823.0,94819.0,0.00776124]
[1745831884282,0.0456,94821.0,94818.0,0.00010623]
[1745831884433,0.045,94819.0,94818.0,0.00010623]
[1745831884639,0.15189014,94819.0,94818.0,0.00010623]
[1745831886281,0.15189014,94819.0,94818.0,0.00805943]
[1745831886483,0.15189014,94819.0,94818.0,0.00010623]
[1745831887384,0.15489014,94819.0,94818.0,0.00010623]
[1745831888922,0.10989014,94819.0,94800.0,1.63082107]
[1745831889117,0.0489,94817.0,94801.0,0.00645812]
[1745831889319,0.0489,94817.0,94813.0,0.05]
[1745831889514,0.0489,94817.0,94814.0,0.00642393]
[1745831890725,0.0499,94817.0,94814.0,0.00642393]
[1745831891155,0.0509,94817.0,94814.0,0.00642393]
[1745831899805,0.0489,94817.0,94814.0,0.00642393]
[1745831900017,0.0499,94817.0,94814.0,0.00642393]
[1745831905636,0.001,94817.0,94816.0,0.21093486]
[1745831905935,0.001,94817.0,94816.0,0.21738147]
[1745831906144,0.001,94817.0,94816.0,0.00644661]
[1745831906285,0.001,94817.0,94814.0,0.22148619]
[1745831906488,0.001,94817.0,94815.0,0.00644219]
[1745831906821,0.0458,94823.0,94816.0,0.01975965]
[1745831906990,0.0458,94823.0,94817.0,0.01975965]
[1745831907341,0.0458,94823.0,94818.0,0.0064343]
[1745831907551,0.0458,94823.0,94818.0,0.02619395]
[1745831907963,0.0458,94823.0,94819.0,0.01975965]
[1745831908176,0.0458,94823.0,94820.0,0.00642904]
[1745831908622,0.0458,94823.0,94821.0,0.01975965]
[1745831909009,0.0458,94823.0,94822.0,0.00642378]
[1745831909315,0.0458,94823.0,94822.0,0.02618343]
[1745831909487,0.0468,94823.0,94822.0,0.02618343]
[1745831909889,0.0458,94823.0,94822.0,0.01975965]
[1745831910051,0.0468,94823.0,94822.0,0.01975965]
[1745831910249,0.0468,94823.0,94822.0,0.02618343]
[1745831910500,0.0468,94823.0,94822.0,0.01975965]
[1745831910706,0.0468,94823.0,94822.0,0.02618343]
[1745831911478,0.0458,94823.0,94822.0,0.02618343]
[1745831911884,0.0458,94823.0,94822.0,0.01975965]
[1745831912223,0.0458,94823.0,94822.0,0.02618343]
[1745831912585,0.0468,94823.0,94822.0,0.02618343]
[1745831912941,0.0468,94823.0,94822.0,0.01975965]
[1745831913143,0.0468,94823.0,94822.0,0.02618343]
[1745831927518,0.0468,94823.0,94822.0,0.02418343]
[1745831929789,0.0468,94823.0,94822.0,0.00359452]
[1745831930016,0.0468,94823.0,94813.0,0.21094121]
[1745831930422,0.0468,94823.0,94814.0,0.0059948]
[1745831930975,0.0458,94823.0,94812.0,0.22148705]
[1745831931102,0.0458,94823.0,94815.0,0.00599217]
[1745831931301,0.0468,94823.0,94813.0,0.00599743]
[1745831931503,0.0468,94823.0,94816.0,0.00598955]
[1745831931726,0.0468,94823.0,94812.0,0.21093987]
[1745831931948,0.0468,94823.0,94817.0,0.00598692]
[1745831932171,0.0468,94823.0,94813.0,0.01054707]
[1745831932324,0.0468,94823.0,94818.0,0.00598429]
[1745831932503,0.0469,94829.0,94822.0,0.01054607]
[1745831932715,0.001,94823.0,94822.0,0.22146729]
[1745831932913,0.001,94823.0,94822.0,0.21092122]
[1745831933112,0.0469,94829.0,94821.0,0.21092373]
[1745831933341,0.001,94823.0,94820.0,0.21092374]
[1745831933573,0.0469,94829.0,94820.0,0.21092374]
[1745831933895,0.0469,94829.0,94822.0,0.21192048]
[1745831934242,0.0469,94829.0,94822.0,0.21092048]
[1745831934644,0.0469,94829.0,94821.0,0.21192238]
[1745831934894,0.0469,94829.0,94821.0,0.21092238]
[1745831935065,0.0469,94829.0,94820.0,0.21092166]
[1745831935267,0.0469,94829.0,94822.0,0.001]
[1745831936540,0.0469,94829.0,94821.0,0.21092314]
[1745831936914,0.0469,94829.0,94821.0,0.21192314]
[1745831937404,0.0469,94829.0,94822.0,0.00597808]
[1745831938458,0.0469,94829.0,94822.0,0.001]
[1745831938683,0.0469,94829.0,94823.0,0.00597545]
[1745831939290,0.0469,94829.0,94822.0,0.001]
[1745831939715,0.0469,94829.0,94823.0,0.00597545]
[1745831940234,0.0469,94829.0,94816.0,0.22148145]
[1745831940443,0.0469,94829.0,94814.0,0.22148425]
[1745831940661,0.0469,94829.0,94823.0,0.001]
[1745831941074,0.0469,94829.0,94815.0,0.21093708]
[1745831941232,0.0469,94829.0,94816.0,0.21193404]
[1745831941433,0.0469,94829.0,94816.0,0.21792789]
[1745831941655,0.0469,94829.0,94816.0,0.00699385]
[1745831941901,0.0469,94829.0,94816.0,0.00599385]
[1745831942219,0.0469,94829.0,94823.0,0.001]
[1745831943322,0.0469,94829.0,94814.0,0.22148412]
[1745831943516,0.0469,94829.0,94816.0,0.001]
[1745831944052,0.0469,94829.0,94817.0,0.00597527]
[1745831944335,0.0469,94829.0,94823.0,0.001]
[1745831944840,0.0469,94829.0,94814.0,0.22148543]
[1745831945240,0.0469,94829.0,94817.0,0.001]
[1745831945651,0.0469,94829.0,94818.0,0.00597264]
[1745831946965,0.0469,94829.0,94814.0,0.22248543]
[1745831947115,0.0469,94829.0,94814.0,0.01054696]
[1745831947472,0.0469,94829.0,94818.0,0.001]
[1745831947976,0.0469,94829.0,94819.0,0.00597001]
[1745831948177,0.0469,94829.0,94814.0,0.01054696]
[1745831948357,0.0469,94829.0,94815.0,0.01652738]
[1745831949280,0.0469,94829.0,94815.0,0.00598053]
[1745831950065,0.0469,94829.0,94819.0,0.001]
[1745831950474,0.0469,94829.0,94820.0,0.00596738]
[1745831950667,0.0469,94829.0,94815.0,0.001]
[1745831951045,0.0469,94829.0,94816.0,0.0059779]
[1745831951714,0.0469,94829.0,94819.0,0.001]
[1745831951989,0.0469,94829.0,94820.0,0.00596738]
[1745831952135,0.0469,94829.0,94819.0,0.001]
[1745831952331,0.10689014,94828.0,94819.0,0.001]
[1745831952537,0.0465,94826.0,94819.0,0.001]